fUST/lending_fUST_20250910
["ID","MTS","AMOUNT","RATE_DAILY","PERIOD"]
[384515561,1757448647401,-480.0,0.00014246,2]
[384515563,1757448647411,-480.0,0.00014246,2]
[384515565,1757448647420,-480.0,0.00014246,2]
[384515566,1757448647430,-557.6,0.00014246,2]
[384515568,1757448647440,-480.0,0.00014246,2]
[384515570,1757448647449,-534.79,0.00014246,2]
[384515571,1757448647458,-480.0,0.00014246,2]
[384515573,1757448647468,-2529.76,0.00014246,2]
[384515575,1757448647477,-480.0,0.00014246,2]
[384515576,1757448647487,-1325.34,0.00014246,2]
[384515578,1757448647496,-480.0,0.00014246,2]
[384515589,1757448647628,-480.0,0.00014246,2]
[384515591,1757448647638,-480.0,0.00014246,2]
[384515593,1757448647648,-625.4,0.00014246,2]
[384515594,1757448647658,-480.0,0.00014246,2]
[384515596,1757448647668,-480.0,0.00014246,2]
[384515598,1757448647678,-1580.15,0.00014246,2]
[384515600,1757448647687,-5386.26,0.00014246,2]
[384515601,1757448647697,-601.49,0.00014246,2]
[384515603,1757448647707,-480.0,0.00014246,2]
[384515605,1757448647717,-480.0,0.00014246,2]
[384515607,1757448647726,-480.0,0.00014246,2]
[384515608,1757448647735,-480.0,0.00014246,2]
[384515610,1757448647745,-729.92,0.00014246,2]
[384515612,1757448647754,-480.0,0.00014246,2]
[384515613,1757448647763,-1317.06,0.00014246,2]
[384515615,1757448647773,-2409.72,0.00014246,2]
[384515617,1757448647782,-741.56,0.00014246,2]
[384515619,1757448647791,-480.0,0.00014246,2]
[384515620,1757448647801,-480.0,0.00014246,2]
[384515622,1757448647811,-1043.82,0.00014246,2]
[384515624,1757448647820,-3463.14,0.00014246,2]
[384515625,1757448647829,-370.08583587,0.00014246,2]
[384515627,1757448647838,-644.34,0.00014246,2]
[384515629,1757448647847,-2320.27,0.00014246,2]
[384515631,1757448647857,-1065.39,0.00014246,2]
[384515632,1757448647866,-722.49,0.00014246,2]
[384515634,1757448647875,-682.5,0.00014246,2]
[384515636,1757448647885,-480.0,0.00014246,2]
[384515637,1757448647895,-699.17,0.00014246,2]
[384515639,1757448647905,-480.0,0.00014246,2]
[384515641,1757448647915,-876.83,0.00014246,2]
[384515643,1757448647924,-480.0,0.00014246,2]
[384515645,1757448647934,-782.37,0.00014246,2]
[384515647,1757448647943,-480.0,0.00014246,2]
[384515649,1757448647952,-1994.74,0.00014246,2]
[384515651,1757448647965,-480.0,0.00014246,2]
[384515653,1757448647974,-832.33,0.00014246,2]
[384515655,1757448647984,-480.0,0.00014246,2]
[384515657,1757448647994,-480.0,0.00014246,2]
[384515660,1757448648004,-1041.3420875,0.00014247,2]
[384515662,1757448648014,-204.77153506,0.00014295,2]
[384515663,1757448648023,-153.0,0.000143,2]
[384515665,1757448648032,-153.0,0.000143,2]
[384515667,1757448648041,-463.9485417,0.000143,2]
[384515669,1757448648050,-161.6618188,0.000143,2]
[384515672,1757448648060,-583.979298,0.000143,2]
[384515674,1757448648069,-295.5430699,0.000143,2]
[384515675,1757448648079,-583.979298,0.000143,2]
[384515677,1757448648088,-161.6618188,0.000143,2]
[384515679,1757448648098,-161.6618188,0.000143,2]
[384515681,1757448648108,-583.979298,0.000143,2]
[384515683,1757448648117,-295.5430699,0.000143,2]
[384515685,1757448648126,-753.005945,0.000143,2]
[384515686,1757448648136,-161.6618188,0.000143,2]
[384515687,1757448648145,-295.5430699,0.000143,2]
[384515688,1757448648154,-151.0,0.000144,2]
[384515689,1757448648164,-500.0,0.00014456,2]
[384515690,1757448648173,-569.99064553,0.00014498,2]
[384515691,1757448648183,-151.0,0.000145,2]
[384515692,1757448648192,-999.999999,0.0001451,2]
[384515693,1757448648201,-7017.61481862,0.00014512,2]
[384515694,1757448648210,-480.0,0.0001452,2]
[384515695,1757448648219,-480.0,0.0001452,2]
[384515696,1757448648228,-480.0,0.0001452,2]
[384515697,1757448648237,-480.0,0.0001452,2]
[384515698,1757448648247,-480.0,0.0001452,2]
[384515699,1757448648256,-480.0,0.0001452,2]
[384515700,1757448648266,-480.0,0.0001452,2]
[384515701,1757448648275,-589.73,0.0001452,2]
[384515702,1757448648284,-560.34,0.0001452,2]
[384515703,1757448648294,-480.0,0.0001452,2]
[384515704,1757448648303,-480.0,0.0001452,2]
[384515705,1757448648312,-480.0,0.0001452,2]
[384515706,1757448648321,-480.0,0.0001452,2]
[384515707,1757448648330,-490.87,0.0001452,2]
[384515708,1757448648339,-480.0,0.0001452,2]
[384515709,1757448648348,-480.0,0.0001452,2]
[384515710,1757448648356,-638.57,0.0001452,2]
[384515711,1757448648366,-676.04,0.0001452,2]
[384515712,1757448648376,-480.0,0.0001452,2]
[384515713,1757448648386,-151.0,0.0001452,2]
[384515714,1757448648395,-480.0,0.0001452,2]
[384515715,1757448648404,-746.4,0.0001452,2]
[384515716,1757448648413,-620.39,0.0001452,2]
[384515717,1757448648422,-613.34,0.0001452,2]
[384515718,1757448648432,-480.0,0.0001452,2]
[384515719,1757448648441,-480.0,0.0001452,2]
[384515720,1757448648451,-954.71,0.0001452,2]
[384515721,1757448648459,-480.0,0.0001452,2]
[384515722,1757448648468,-480.0,0.0001452,2]
[384515723,1757448648478,-576.55,0.0001452,2]
[384515724,1757448648487,-480.0,0.0001452,2]
[384515726,1757448648496,-510.33,0.0001452,2]
[384515727,1757448648505,-2503.08,0.0001452,2]
[384515728,1757448648515,-518.77,0.0001452,2]
[384515730,1757448648524,-516.69,0.0001452,2]
[384515731,1757448648534,-480.0,0.0001452,2]
[384515733,1757448648543,-22357.95,0.0001452,2]
[384515735,1757448648553,-480.0,0.0001452,2]
[384515737,1757448648562,-1152.01,0.0001452,2]
[384515739,1757448648571,-557.21,0.0001452,2]
[384515741,1757448648581,-1573.14,0.0001452,2]
[384515743,1757448648590,-480.0,0.0001452,2]
[384515745,1757448648599,-985.1,0.0001452,2]
[384515747,1757448648609,-480.0,0.0001452,2]
[384515749,1757448648619,-480.0,0.0001452,2]
[384515751,1757448648628,-660.09,0.0001452,2]
[384515753,1757448648638,-3876.29,0.0001452,2]
[384515755,1757448648647,-282.93,0.0001452,2]
[384515757,1757448648658,-480.0,0.0001452,2]
[384515759,1757448648669,-480.0,0.0001452,2]
[384515761,1757448648678,-3041.54,0.0001452,2]
[384515763,1757448648688,-1841.66,0.0001452,2]
[384515765,1757448648697,-480.0,0.0001452,2]
[384515767,1757448648706,-480.0,0.0001452,2]
[384515769,1757448648716,-480.0,0.0001452,2]
[384515771,1757448648724,-1077.09,0.0001452,2]
[384515773,1757448648733,-2598.11,0.0001452,2]
[384515775,1757448648742,-972.26,0.0001452,2]
[384515777,1757448648751,-732.93,0.0001452,2]
[384515779,1757448648761,-480.0,0.0001452,2]
[384515781,1757448648770,-480.0,0.0001452,2]
[384515783,1757448648779,-765.84,0.0001452,2]
[384515785,1757448648789,-931.58,0.0001452,2]
[384515787,1757448648799,-1009.24,0.0001452,2]
[384515789,1757448648808,-480.0,0.0001452,2]
[384515791,1757448648818,-480.0,0.0001452,2]
[384515793,1757448648827,-485.88,0.0001452,2]
[384515795,1757448648836,-1432.45,0.0001452,2]
[384515797,1757448648846,-761.17,0.0001452,2]
[384515799,1757448648855,-480.0,0.0001452,2]
[384515801,1757448648865,-480.0,0.0001452,2]
[384515803,1757448648875,-480.0,0.0001452,2]
[384515805,1757448648884,-1808.68,0.0001452,2]
[384515807,1757448648894,-9732.68,0.0001452,2]
[384515809,1757448648904,-2826.09,0.0001452,2]
[384515811,1757448648913,-480.0,0.0001452,2]
[384515813,1757448648922,-480.0,0.0001452,2]
[384515815,1757448648933,-480.0,0.0001452,2]
[384515817,1757448648943,-480.0,0.0001452,2]
[384515819,1757448648952,-557.6,0.0001452,2]
[384515821,1757448648962,-480.0,0.0001452,2]
[384515823,1757448648972,-534.79,0.0001452,2]
[384515825,1757448648981,-480.0,0.0001452,2]
[384515827,1757448648991,-2529.76,0.0001452,2]
[384515829,1757448649001,-480.0,0.0001452,2]
[384515831,1757448649010,-1325.34,0.0001452,2]
[384515833,1757448649020,-480.0,0.0001452,2]
[384515835,1757448649030,-480.0,0.0001452,2]
[384515837,1757448649039,-480.0,0.0001452,2]
[384515839,1757448649049,-625.4,0.0001452,2]
[384515841,1757448649058,-480.0,0.0001452,2]
[384515843,1757448649068,-480.0,0.0001452,2]
[384515845,1757448649078,-1580.15,0.0001452,2]
[384515847,1757448649088,-5386.26,0.0001452,2]
[384515849,1757448649097,-601.49,0.0001452,2]
[384515851,1757448649106,-480.0,0.0001452,2]
[384515853,1757448649116,-480.0,0.0001452,2]
[384515855,1757448649126,-480.0,0.0001452,2]
[384515857,1757448649136,-480.0,0.0001452,2]
[384515859,1757448649146,-729.92,0.0001452,2]
[384515861,1757448649156,-480.0,0.0001452,2]
[384515863,1757448649166,-1317.06,0.0001452,2]
[384515865,1757448649175,-2409.72,0.0001452,2]
[384515867,1757448649185,-741.56,0.0001452,2]
[384515869,1757448649194,-480.0,0.0001452,2]
[384515871,1757448649203,-480.0,0.0001452,2]
[384515873,1757448649213,-1043.82,0.0001452,2]
[384515875,1757448649222,-3463.14,0.0001452,2]
[384515877,1757448649231,-644.34,0.0001452,2]
[384515879,1757448649241,-2320.27,0.0001452,2]
[384515882,1757448649250,-1065.39,0.0001452,2]
[384515883,1757448649260,-722.49,0.0001452,2]
[384515885,1757448649269,-682.5,0.0001452,2]
[384515887,1757448649279,-480.0,0.0001452,2]
[384515889,1757448649288,-699.17,0.0001452,2]
[384515891,1757448649298,-480.0,0.0001452,2]
[384515894,1757448649308,-876.83,0.0001452,2]
[384515896,1757448649317,-480.0,0.0001452,2]
[384515898,1757448649326,-782.37,0.0001452,2]
[384515900,1757448649336,-480.0,0.0001452,2]
[384515902,1757448649345,-1994.74,0.0001452,2]
[384515904,1757448649354,-480.0,0.0001452,2]
[384515906,1757448649363,-832.33,0.0001452,2]
[384515907,1757448649373,-500.0,0.00014521,2]
[384515908,1757448649383,-1000.0,0.00014521,2]
[384515909,1757448649393,-1000.0,0.00014521,2]
[384515910,1757448649402,-1000.0,0.00014521,2]
[384515911,1757448649411,-1000.0,0.00014521,2]
[384515912,1757448649421,-1000.0,0.00014521,2]
[384515913,1757448649431,-501.86825132,0.00014521,2]
[384515914,1757448649440,-1000.0,0.00014521,2]
[384515915,1757448649450,-1000.0,0.00014521,2]
[384515916,1757448649459,-1000.0,0.00014521,2]
[384515917,1757448649468,-1000.0,0.00014521,2]
[384515918,1757448649477,-300.63066952,0.00014521,2]
[384515919,1757448649486,-608.13073401,0.00014521,2]
[384515920,1757448649495,-1000.0,0.00014521,2]
[384515921,1757448649505,-1000.0,0.00014521,2]
[384515922,1757448649514,-202.0,0.0001454,2]
[384515923,1757448649524,-202.0,0.00014587,2]
[384515924,1757448649534,-151.0,0.000146,2]
[384515925,1757448649543,-168.0,0.00014604,2]
[384515926,1757448649552,-168.0,0.00014608,2]
[384515927,1757448649562,-168.0,0.00014662,2]
[384515928,1757448649571,-160.0,0.00014673,3]
[384515929,1757448649580,-879.6,0.000147,2]
[384515930,1757448649590,-2000.0,0.000147,2]
[384515931,1757448649599,-151.0,0.000147,2]
[384515932,1757448649608,-202.0,0.00014766,2]
[384515933,1757448649618,-480.0,0.00014794,2]
[384515934,1757448649628,-480.0,0.00014794,2]
[384515935,1757448649637,-480.0,0.00014794,2]
[384515936,1757448649646,-480.0,0.00014794,2]
[384515937,1757448649656,-480.0,0.00014794,2]
[384515938,1757448649667,-480.0,0.00014794,2]
[384515939,1757448649677,-480.0,0.00014794,2]
[384515940,1757448649687,-589.73,0.00014794,2]
[384515941,1757448649696,-560.34,0.00014794,2]
[384515942,1757448649706,-480.0,0.00014794,2]
[384515943,1757448649715,-480.0,0.00014794,2]
[384515944,1757448649725,-480.0,0.00014794,2]
[384515945,1757448649735,-480.0,0.00014794,2]
[384515946,1757448649744,-490.87,0.00014794,2]
[384515947,1757448649753,-480.0,0.00014794,2]
[384515948,1757448649763,-157.0,0.00014794,2]
[384515949,1757448649772,-480.0,0.00014794,2]
[384515951,1757448649781,-638.57,0.00014794,2]
[384515953,1757448649791,-676.04,0.00014794,2]
[384515955,1757448649800,-480.0,0.00014794,2]
[384515957,1757448649809,-480.0,0.00014794,2]
[384515959,1757448649818,-746.4,0.00014794,2]
[384515961,1757448649827,-620.39,0.00014794,2]
[384515963,1757448649837,-613.34,0.00014794,2]
[384515965,1757448649847,-480.0,0.00014794,2]
[384515967,1757448649856,-480.0,0.00014794,2]
[384515969,1757448649865,-157.0,0.00014794,2]
[384515971,1757448649875,-954.71,0.00014794,2]
[384515973,1757448649884,-480.0,0.00014794,2]
[384515975,1757448649895,-480.0,0.00014794,2]
[384515976,1757448649905,-576.55,0.00014794,2]
[384515978,1757448649914,-480.0,0.00014794,2]
[384515981,1757448649923,-510.33,0.00014794,2]
[384515983,1757448649933,-2503.08,0.00014794,2]
[384515985,1757448649943,-518.77,0.00014794,2]
[384515986,1757448649952,-516.69,0.00014794,2]
[384515988,1757448649964,-480.0,0.00014794,2]
[384515991,1757448649975,-22357.95,0.00014794,2]
[384515992,1757448649987,-480.0,0.00014794,2]
[384515994,1757448649996,-618.0,0.00014794,2]
[384515997,1757448650008,-500.0,0.00014794,2]
[384515999,1757448650018,-1152.01,0.00014794,2]
[384516001,1757448650027,-557.21,0.00014794,2]
[384516003,1757448650037,-1573.14,0.00014794,2]
[384516005,1757448650046,-480.0,0.00014794,2]
[384516007,1757448650055,-985.1,0.00014794,2]
[384516009,1757448650066,-594.44083356,0.00014794,2]
[384516011,1757448650077,-480.0,0.00014794,2]
[384516013,1757448650086,-660.09,0.00014794,2]
[384516015,1757448650096,-3876.29,0.00014794,2]
[384516017,1757448650105,-480.0,0.00014794,2]
[384516019,1757448650115,-3041.54,0.00014794,2]
[384516021,1757448650124,-1841.66,0.00014794,2]
[384516023,1757448650133,-480.0,0.00014794,2]
[384516025,1757448650142,-480.0,0.00014794,2]
[384516027,1757448650152,-480.0,0.00014794,2]
[384516029,1757448650162,-1077.09,0.00014794,2]
[384516031,1757448650171,-2598.11,0.00014794,2]
[384516033,1757448650180,-972.26,0.00014794,2]
[384516035,1757448650190,-732.93,0.00014794,2]
[384516037,1757448650199,-480.0,0.00014794,2]
[384516039,1757448650208,-765.84,0.00014794,2]
[384516041,1757448650218,-931.58,0.00014794,2]
[384516043,1757448650227,-1009.24,0.00014794,2]
[384516045,1757448650236,-480.0,0.00014794,2]
[384516047,1757448650247,-485.88,0.00014794,2]
[384516049,1757448650256,-157.0,0.00014794,2]
[384516051,1757448650266,-1432.45,0.00014794,2]
[384516053,1757448650275,-761.17,0.00014794,2]
[384516067,1757448650285,-480.0,0.00014794,2]
[384516069,1757448650404,-480.0,0.00014794,2]
[384516071,1757448650414,-1808.68,0.00014794,2]
[384516073,1757448650424,-9732.68,0.00014794,2]
[384516075,1757448650433,-2826.09,0.00014794,2]
[384516077,1757448650442,-480.0,0.00014794,2]
[384516079,1757448650451,-480.0,0.00014794,2]
[384516081,1757448650461,-557.6,0.00014794,2]
[384516083,1757448650470,-480.0,0.00014794,2]
[384516085,1757448650479,-534.79,0.00014794,2]
[384516087,1757448650488,-480.0,0.00014794,2]
[384516089,1757448650497,-2529.76,0.00014794,2]
[384516091,1757448650506,-480.0,0.00014794,2]
[384516093,1757448650515,-1325.34,0.00014794,2]
[384516095,1757448650525,-480.0,0.00014794,2]
[384516097,1757448650534,-480.0,0.00014794,2]
[384516099,1757448650544,-625.4,0.00014794,2]
[384516101,1757448650553,-480.0,0.00014794,2]
[384516103,1757448650563,-208.0,0.00014794,2]
[384516105,1757448650572,-208.0,0.00014794,2]
[384516107,1757448650581,-208.0,0.00014794,2]
[384516109,1757448650590,-208.0,0.00014794,2]
[384516112,1757448650600,-208.0,0.00014794,2]
[384516114,1757448650609,-208.0,0.00014794,2]
[384516116,1757448650618,-208.0,0.00014794,2]
[384516117,1757448650627,-208.0,0.00014794,2]
[384516119,1757448650637,-208.0,0.00014794,2]
[384516121,1757448650646,-480.0,0.00014794,2]
[384516123,1757448650655,-208.0,0.00014794,2]
[384516125,1757448650666,-208.0,0.00014794,2]
[384516127,1757448650677,-208.0,0.00014794,2]
[384516130,1757448650686,-1580.15,0.00014794,2]
[384516132,1757448650695,-5386.26,0.00014794,2]
[384516134,1757448650705,-601.49,0.00014794,2]
[384516136,1757448650714,-480.0,0.00014794,2]
[384516138,1757448650723,-480.0,0.00014794,2]
[384516140,1757448650732,-480.0,0.00014794,2]
[384516142,1757448650741,-729.92,0.00014794,2]
[384516144,1757448650751,-1317.06,0.00014794,2]
[384516146,1757448650761,-2409.72,0.00014794,2]
[384516148,1757448650770,-741.56,0.00014794,2]
[384516150,1757448650780,-480.0,0.00014794,2]
[384516152,1757448650789,-480.0,0.00014794,2]
[384516154,1757448650798,-1043.82,0.00014794,2]
[384516156,1757448650808,-3463.14,0.00014794,2]
[384516158,1757448650817,-644.34,0.00014794,2]
[384516160,1757448650826,-2320.27,0.00014794,2]
[384516162,1757448650835,-1065.39,0.00014794,2]
[384516164,1757448650846,-722.49,0.00014794,2]
[384516165,1757448650856,-682.5,0.00014794,2]
[384516168,1757448650865,-480.0,0.00014794,2]
[384516170,1757448650874,-699.17,0.00014794,2]
[384516172,1757448650884,-480.0,0.00014794,2]
[384516174,1757448650893,-876.83,0.00014794,2]
[384516176,1757448650903,-782.37,0.00014794,2]
[384516178,1757448650912,-480.0,0.00014794,2]
[384516179,1757448650921,-1994.74,0.00014794,2]
[384516182,1757448650931,-480.0,0.00014794,2]
[384516184,1757448650940,-832.33,0.00014794,2]
[384516186,1757448650949,-999.9999995,0.000148,2]
[384516187,1757448650959,-151.0,0.000149,2]
[384516189,1757448650968,-160.0,0.00014946,2]
[384516191,1757448650977,-1236.77085861,0.00015,2]
[384516193,1757448650987,-7269.0,0.00015,2]
[384516195,1757448650996,-160.0,0.00015,2]
[384516197,1757448651005,-8081.20620996,0.00015,2]
[384516199,1757448651015,-160.0,0.00015046,4]
[384516202,1757448651026,-150000.0,0.00015068,2]
[384516204,1757448651036,-618.0,0.00015068,2]
[384516205,1757448651045,-500.0,0.00015068,2]
[384516207,1757448651055,-225.34894102,0.00015068,2]
[384516210,1757448651064,-150.0,0.00015068,2]
[384516212,1757448651075,-300.49685021,0.00015068,5]
[384516213,1757448651084,-480.0,0.00015068,2]
[384516216,1757448651094,-480.0,0.00015068,2]
[384516218,1757448651104,-480.0,0.00015068,2]
[384516220,1757448651113,-480.0,0.00015068,2]
[384516222,1757448651122,-480.0,0.00015068,2]
[384516224,1757448651132,-480.0,0.00015068,2]
[384516226,1757448651141,-480.0,0.00015068,2]
[384516228,1757448651151,-589.73,0.00015068,2]
[384516229,1757448651160,-560.34,0.00015068,2]
[384516232,1757448651170,-480.0,0.00015068,2]
[384516234,1757448651179,-480.0,0.00015068,2]
[384516236,1757448651188,-480.0,0.00015068,2]
[384516238,1757448651198,-480.0,0.00015068,2]
[384516240,1757448651207,-490.87,0.00015068,2]
[384516242,1757448651217,-480.0,0.00015068,2]
[384516244,1757448651226,-480.0,0.00015068,2]
[384516246,1757448651235,-638.57,0.00015068,2]
[384516248,1757448651244,-676.04,0.00015068,2]
[384516250,1757448651255,-480.0,0.00015068,2]
[384516252,1757448651264,-179.76347272,0.00015068,2]
[384516254,1757448651274,-746.4,0.00015068,2]
[384516256,1757448651283,-620.39,0.00015068,2]
[384516258,1757448651292,-613.34,0.00015068,2]
[384516260,1757448651301,-480.0,0.00015068,2]
[384516262,1757448651310,-480.0,0.00015068,2]
[384516264,1757448651320,-954.71,0.00015068,2]
[384516266,1757448651329,-480.0,0.00015068,2]
[384516268,1757448651338,-480.0,0.00015068,2]
[384516270,1757448651347,-576.55,0.00015068,2]
[384516272,1757448651357,-480.0,0.00015068,2]
[384516274,1757448651366,-510.33,0.00015068,2]
[384516276,1757448651375,-2503.08,0.00015068,2]
[384516278,1757448651385,-518.77,0.00015068,2]
[384516280,1757448651394,-516.69,0.00015068,2]
[384516282,1757448651404,-480.0,0.00015068,2]
[384516284,1757448651413,-22357.95,0.00015068,2]
[384516286,1757448651423,-480.0,0.00015068,2]
[384516287,1757448651432,-1152.01,0.00015068,2]
[384516288,1757448651440,-557.21,0.00015068,2]
[384516289,1757448651450,-1573.14,0.00015068,2]
[384516290,1757448651459,-480.0,0.00015068,2]
[384516291,1757448651468,-985.1,0.00015068,2]
[384516292,1757448651477,-480.0,0.00015068,2]
[384516293,1757448651488,-660.09,0.00015068,2]
[384516294,1757448651497,-3876.29,0.00015068,2]
[384516295,1757448651506,-480.0,0.00015068,2]
[384516296,1757448651516,-3041.54,0.00015068,2]
[384516297,1757448651526,-1841.66,0.00015068,2]
[384516298,1757448651535,-480.0,0.00015068,2]
[384516299,1757448651543,-480.0,0.00015068,2]
[384516300,1757448651552,-480.0,0.00015068,2]
[384516301,1757448651562,-1077.09,0.00015068,2]
[384516302,1757448651571,-2598.11,0.00015068,2]
[384516303,1757448651580,-972.26,0.00015068,2]
[384516304,1757448651589,-732.93,0.00015068,2]
[384516305,1757448651598,-480.0,0.00015068,2]
[384516306,1757448651608,-765.84,0.00015068,2]
[384516307,1757448651616,-931.58,0.00015068,2]
[384516308,1757448651626,-1009.24,0.00015068,2]
[384516309,1757448651635,-480.0,0.00015068,2]
[384516311,1757448651644,-485.88,0.00015068,2]
[384516313,1757448651654,-1432.45,0.00015068,2]
[384516315,1757448651663,-761.17,0.00015068,2]
[384516317,1757448651673,-480.0,0.00015068,2]
[384516319,1757448651684,-480.0,0.00015068,2]
[384516321,1757448651695,-1808.68,0.00015068,2]
[384516323,1757448651705,-9732.68,0.00015068,2]
[384516325,1757448651714,-2826.09,0.00015068,2]
[384516328,1757448651724,-480.0,0.00015068,2]
[384516329,1757448651734,-557.6,0.00015068,2]
[384516331,1757448651743,-480.0,0.00015068,2]
[384516334,1757448651753,-534.79,0.00015068,2]
[384516335,1757448651763,-480.0,0.00015068,2]
[384516337,1757448651773,-2529.76,0.00015068,2]
[384516339,1757448651782,-480.0,0.00015068,2]
[384516341,1757448651792,-1325.34,0.00015068,2]
[384516343,1757448651801,-625.4,0.00015068,2]
[384516345,1757448651810,-480.0,0.00015068,2]
[384516348,1757448651819,-480.0,0.00015068,2]
[384516350,1757448651829,-1580.15,0.00015068,2]
[384516352,1757448651839,-5386.26,0.00015068,2]
[384516354,1757448651849,-601.49,0.00015068,2]
[384516356,1757448651858,-480.0,0.00015068,2]
[384516358,1757448651869,-480.0,0.00015068,2]
[384516360,1757448651878,-480.0,0.00015068,2]
[384516362,1757448651887,-729.92,0.00015068,2]
[384516364,1757448651897,-2409.72,0.00015068,2]
[384516366,1757448651908,-1317.06,0.00015068,2]
[384516368,1757448651917,-741.56,0.00015068,2]
[384516370,1757448651926,-480.0,0.00015068,2]
[384516372,1757448651936,-1043.82,0.00015068,2]
[384516374,1757448651944,-3463.14,0.00015068,2]
[384516376,1757448651954,-644.34,0.00015068,2]
[384516378,1757448651963,-2320.27,0.00015068,2]
[384516380,1757448651972,-1065.39,0.00015068,2]
[384516382,1757448651982,-722.49,0.00015068,2]
[384516384,1757448651991,-682.5,0.00015068,2]
[384516386,1757448652001,-480.0,0.00015068,2]
[384516388,1757448652011,-699.17,0.00015068,2]
[384516390,1757448652020,-215.04321221,0.00015068,2]
[384516392,1757448652029,-876.83,0.00015068,2]
[384516394,1757448652039,-782.37,0.00015068,2]
[384516396,1757448652048,-579.69642012,0.00015068,2]
[384516398,1757448652058,-1994.74,0.00015068,2]
[384516400,1757448652067,-480.0,0.00015068,2]
[384516402,1757448652077,-832.33,0.00015068,2]
[384516404,1757448652086,-1500.0,0.00015068,2]
[384516406,1757448652096,-1500.0,0.00015068,2]
[384516408,1757448652106,-1500.0,0.00015068,2]
[384516410,1757448652115,-1500.0,0.00015068,2]
[384516412,1757448652125,-1501.07369853,0.00015068,2]
[384516414,1757448652134,-1500.0,0.00015068,2]
[384516416,1757448652143,-1500.0,0.00015068,2]
[384516418,1757448652153,-1500.0,0.00015068,2]
[384516420,1757448652163,-167.91943825,0.00015068,2]
[384516422,1757448652172,-513.152587,0.00015068,2]
[384516424,1757448652181,-500.0,0.00015068,2]
[384516426,1757448652190,-168.0,0.00015082,2]
[384516428,1757448652200,-500.40998517,0.000151,2]
[384516430,1757448652209,-500.14262265,0.000151,2]
[384516432,1757448652218,-500.32845412,0.000151,2]
[384516434,1757448652227,-447.46750776,0.000151,2]
[384516436,1757448652236,-155.23919268,0.000151,2]
[384516438,1757448652245,-500.15697166,0.000151,2]
[384516440,1757448652255,-500.35616415,0.000151,2]
[384516442,1757448652264,-500.39151472,0.000151,2]
[384516444,1757448652273,-500.69093276,0.000151,2]
[384516446,1757448652282,-500.0,0.000151,2]
[384516448,1757448652291,-500.34979336,0.000151,2]
[384516450,1757448652300,-500.0,0.000151,2]
[384516452,1757448652309,-500.0,0.000151,2]
[384516454,1757448652318,-500.17271525,0.000151,2]
[384516456,1757448652327,-317.36292224,0.000151,2]
[384516458,1757448652336,-500.12346251,0.000151,2]
[384516460,1757448652345,-202.5476642,0.000151,2]
[384516463,1757448652355,-527.79801149,0.000151,2]
[384516464,1757448652365,-293.39431684,0.000151,2]